[Event "2nd Namma Bengaluru Open-A 2025"]
[Site "Bengaluru"]
[Date "2025.04.13"]
[Round "5.27"]
[White "Bhoir Paras Dilip"]
[Black "Shahil Dey"]
[Result "1/2-1/2"]
[Annotator "ChessBase"]
[ECO "C66"]
[WhiteElo "2085"]
[BlackElo "2360"]
[PlyCount "62"]
[EventDate "2025.04.10"]
[EventType "swiss"]
[EventCountry "IND"]
[SourceTitle "playchess.com"]
[Source "ChessBase"]
[SourceQuality "1"]
[TimeControl "5400+30"]

1. e4 {[%emt 0:00:30]} e5 {[%emt 0:00:30]} 2. Nf3 {[%emt 0:00:30]} Nc6 {[%emt 0:00:30]} 3. Bb5 {[%emt 0:00:30]} a6 {[%emt 0:00:30]} 4. Ba4 {[%emt 0:00:30]} d6 {[%emt 0:00:30]} 5. c3 {[%emt 0:00:30]} Bd7 {[%emt 0:00:30]} 6. O-O {[%emt 0:00:30]} Nf6 {[%emt 0:00:30]} 7. Re1 {[%emt 0:00:30]} g6 {[%emt 0:00:30]} 8. h3 {[%emt 0:00:30]} Bg7 {[%emt 0:00:30]} 9. d4 {[%emt 0:00:30]} O-O {[%emt 0:00:30]} 10. dxe5 {[%emt 0:00:30]} Nxe5 {[%emt 0:00:30]} 11. Nxe5 {[%emt 0:00:30]} dxe5 {[%emt 0:00:30]} 12. Bc2 {[%emt 0:00:30]} Nh5 {[%emt 0:00:30]} 13. Nd2 {[%emt 0:00:30]} Qe7 {[%emt 0:00:30]} 14. Nf3 {[%emt 0:00:30]} Rad8 {[%emt 0:00:30]} 15. Qe2 {[%emt 0:00:30]} Bb5 {[%emt 0:00:30]} 16. c4 {[%emt 0:00:30]} Bc6 {[%emt 0:00:30]} 17. Bg5 {[%emt 0:00:30]} Bf6 {[%emt 0:00:30]} 18. Bxf6 {[%emt 0:00:30]} Qxf6 {[%emt 0:00:30]} 19. g3 {[%emt 0:00:30]} Qe7 {[%emt 0:00:30]} 20. Qe3 {[%emt 0:00:30]} Bd7 {[%emt 0:00:30]} 21. Kg2 {[%emt 0:00:30]} Qe6 {[%emt 0:00:30]} 22. Rh1 {[%emt 0:00:30]} Bc6 {[%emt 0:00:30]} 23. c5 {[%emt 0:00:30]} Kg7 {[%emt 0:00:30]} 24. Rhe1 {[%emt 0:00:30]} h6 {[%emt 0:00:30]} 25. b4 {[%emt 0:00:30]} Rfe8 {[%emt 0:00:30]} 26. Bb3 {[%emt 0:00:30]} Qe7 {[%emt 0:00:30]} 27. Rad1 {[%emt 0:00:30]} Nf6 {[%emt 0:00:30]} 28. Bc2 {[%emt 0:00:30]} a5 {[%emt 0:00:30]} 29. a3 {[%emt 0:00:30]} axb4 {[%emt 0:00:30]} 30. axb4 {[%emt 0:00:30]} Rxd1 {[%emt 0:00:30]} 31. Rxd1 {[%emt 0:00:30]} Ra8 {[%emt 0:00:30]} 1/2-1/2

[Event "2nd Namma Bengaluru Open-A 2025"]
[Site "Bengaluru"]
[Date "2025.04.13"]
[Round "5.28"]
[White "Soham Roy"]
[Black "Subhayan Kundu"]
[Result "0-1"]
[Annotator "ChessBase"]
[ECO "C11"]
[WhiteElo "2085"]
[BlackElo "2356"]
[PlyCount "84"]
[EventDate "2025.04.10"]
[EventType "swiss"]
[EventCountry "IND"]
[SourceTitle "playchess.com"]
[Source "ChessBase"]
[SourceQuality "1"]
[TimeControl "5400+30"]

1. e4 {[%emt 0:00:30]} e6 {[%emt 0:00:30]} 2. d4 {[%emt 0:00:30]} d5 {[%emt 0:00:30]} 3. Nc3 {[%emt 0:00:30]} Nf6 {[%emt 0:00:30]} 4. e5 {[%emt 0:00:30]} Nfd7 {[%emt 0:00:30]} 5. f4 {[%emt 0:00:30]} c5 {[%emt 0:00:30]} 6. Nf3 {[%emt 0:00:30]} Nc6 {[%emt 0:00:30]} 7. Be3 {[%emt 0:00:30]} Be7 {[%emt 0:00:30]} 8. Qd2 {[%emt 0:00:30]} O-O {[%emt 0:00:30]} 9. dxc5 {[%emt 0:00:30]} Qa5 {[%emt 0:00:30]} 10. Nd4 {[%emt 0:00:30]} Bxc5 {[%emt 0:00:30]} 11. Nb3 {[%emt 0:00:30]} Bxe3 {[%emt 0:00:30]} 12. Qxe3 {[%emt 0:00:30]} Qb4 {[%emt 0:00:30]} 13. a3 {[%emt 0:00:30]} Qe7 {[%emt 0:00:30]} 14. Be2 {[%emt 0:00:30]} Ndxe5 {[%emt 0:00:30]} 15. fxe5 {[%emt 0:00:30]} d4 {[%emt 0:00:30]} 16. Qg3 {[%emt 0:00:30]} dxc3 {[%emt 0:00:30]} 17. O-O-O {[%emt 0:00:30]} cxb2+ {[%emt 0:00:30]} 18. Kxb2 {[%emt 0:00:30]} a5 {[%emt 0:00:30]} 19. a4 {[%emt 0:00:30]} Bd7 {[%emt 0:00:30]} 20. Bb5 {[%emt 0:00:30]} Rfd8 {[%emt 0:00:30]} 21. Rd6 {[%emt 0:00:30]} Nb4 {[%emt 0:00:30]} 22. c4 {[%emt 0:00:30]} Bxb5 {[%emt 0:00:30]} 23. axb5 {[%emt 0:00:30]} a4 {[%emt 0:00:30]} 24. Nd2 {[%emt 0:00:30]} Qc7 {[%emt 0:00:30]} 25. Ra1 {[%emt 0:00:30]} Rxd6 {[%emt 0:00:30]} 26. exd6 {[%emt 0:00:30]} Qc5 {[%emt 0:00:30]} 27. d7 {[%emt 0:00:30]} Qd4+ {[%emt 0:00:30]} 28. Qc3 {[%emt 0:00:30]} Nd3+ {[%emt 0:00:30]} 29. Kc2 {[%emt 0:00:30]} Qxc3+ {[%emt 0:00:30]} 30. Kxc3 {[%emt 0:00:30]} Nc5 {[%emt 0:00:30]} 31. Kb4 {[%emt 0:00:30]} b6 {[%emt 0:00:30]} 32. Nf3 {[%emt 0:00:30]} Rd8 {[%emt 0:00:30]} 33. Rd1 {[%emt 0:00:30]} Rxd7 {[%emt 0:00:30]} 34. Rxd7 {[%emt 0:00:30]} Nxd7 {[%emt 0:00:30]} 35. Kxa4 {[%emt 0:00:30]} Kf8 {[%emt 0:00:30]} 36. Kb4 {[%emt 0:00:30]} Ke7 {[%emt 0:00:30]} 37. Kc3 {[%emt 0:00:30]} Kd6 {[%emt 0:00:30]} 38. Ng5 {[%emt 0:00:30]} f6 {[%emt 0:00:30]} 39. Nf3 {[%emt 0:00:30]} e5 {[%emt 0:00:30]} 40. Kd3 {[%emt 0:00:30]} f5 {[%emt 0:00:30]} 41. Nd2 {[%emt 0:00:30]} g6 {[%emt 0:00:30]} 42. g3 {[%emt 0:00:30]} e4+ {[%emt 0:00:30]} 0-1

[Event "2nd Namma Bengaluru Open-A 2025"]
[Site "Bengaluru"]
[Date "2025.04.13"]
[Round "5.29"]
[White "Podolchenko, Evgeniy"]
[Black "Bivor Adak"]
[Result "1-0"]
[Annotator "ChessBase"]
[ECO "D35"]
[WhiteElo "2307"]
[BlackElo "2100"]
[PlyCount "59"]
[EventDate "2025.04.10"]
[EventType "swiss"]
[EventCountry "IND"]
[SourceTitle "playchess.com"]
[Source "ChessBase"]
[SourceQuality "1"]
[TimeControl "5400+30"]

1. d4 {[%emt 0:00:30]} d5 {[%emt 0:00:30]} 2. c4 {[%emt 0:00:30]} e6 {[%emt 0:00:30]} 3. Nc3 {[%emt 0:00:30]} Nf6 {[%emt 0:00:30]} 4. cxd5 {[%emt 0:00:30]} exd5 {[%emt 0:00:30]} 5. Bg5 {[%emt 0:00:30]} Bb4 {[%emt 0:00:30]} 6. e3 {[%emt 0:00:30]} h6 {[%emt 0:00:30]} 7. Bh4 {[%emt 0:00:30]} g5 {[%emt 0:00:30]} 8. Bg3 {[%emt 0:00:30]} Ne4 {[%emt 0:00:30]} 9. Rc1 {[%emt 0:00:30]} h5 {[%emt 0:00:30]} 10. f3 {[%emt 0:00:30]} Nxg3 {[%emt 0:00:30]} 11. hxg3 {[%emt 0:00:30]} Qd6 {[%emt 0:00:30]} 12. Kf2 {[%emt 0:00:30]} h4 {[%emt 0:00:30]} 13. gxh4 {[%emt 0:00:30]} Bxc3 {[%emt 0:00:30]} 14. Rxc3 {[%emt 0:00:30]} gxh4 {[%emt 0:00:30]} 15. Ne2 {[%emt 0:00:30]} Nc6 {[%emt 0:00:30]} 16. Nf4 {[%emt 0:00:30]} Bd7 {[%emt 0:00:30]} 17. Qb3 {[%emt 0:00:30]} O-O-O {[%emt 0:00:30]} 18. Qxd5 {[%emt 0:00:30]} Qf6 {[%emt 0:00:30]} 19. Qc5 {[%emt 0:00:30]} Kb8 {[%emt 0:00:30]} 20. d5 {[%emt 0:00:30]} Ne5 {[%emt 0:00:30]} 21. Qxc7+ {[%emt 0:00:30]} Ka8 {[%emt 0:00:30]} 22. Rb3 {[%emt 0:00:30]} Rb8 {[%emt 0:00:30]} 23. Nd3 {[%emt 0:00:30]} Ng4+ {[%emt 0:00:30]} 24. Kg1 {[%emt 0:00:30]} Nxe3 {[%emt 0:00:30]} 25. Qxd7 {[%emt 0:00:30]} Qd4 {[%emt 0:00:30]} 26. Rb4 {[%emt 0:00:30]} Qg7 {[%emt 0:00:30]} 27. Rhxh4 {[%emt 0:00:30]} Rhg8 {[%emt 0:00:30]} 28. Ra4 {[%emt 0:00:30]} a6 {[%emt 0:00:30]} 29. Ne1 {[%emt 0:00:30]} Qg3 {[%emt 0:00:30]} 30. Bxa6 {[%emt 0:00:30]} 1-0

[Event "2nd Namma Bengaluru Open-A 2025"]
[Site "Bengaluru"]
[Date "2025.04.13"]
[Round "5.30"]
[White "Arnav Maheshwari"]
[Black "Kumaresh A"]
[Result "1/2-1/2"]
[Annotator "ChessBase"]
[ECO "D95"]
[WhiteElo "2305"]
[BlackElo "2097"]
[PlyCount "64"]
[EventDate "2025.04.10"]
[EventType "swiss"]
[EventCountry "IND"]
[SourceTitle "playchess.com"]
[Source "ChessBase"]
[SourceQuality "1"]
[TimeControl "5400+30"]

1. d4 Nf6 2. c4 g6 3. Nc3 d5 4. Nf3 Bg7 5. e3 O-O 6. Qb3 dxc4 7. Bxc4 c5 8. Ng5 e6 9. dxc5 Qc7 10. Nce4 Nxe4 11. Nxe4 Nd7 12. Bd2 b6 13. Be2 Bb7 14. c6 Bxc6 15. Rc1 Nc5 16. Nxc5 bxc5 17. Rxc5 Qd6 18. Rxc6 Qxc6 19. Bf3 Qa6 20. Bb7 Qb6 21. Bxa8 Rxa8 22. Bc3 Rb8 23. Qxb6 Bxc3+ 24. bxc3 Rxb6 25. Ke2 Rb2+ 26. Kf3 Rc2 27. Rb1 Rxc3 28. Rb8+ Kg7 29. Rb7 Ra3 30. Rb2 Ra4 31. Rd2 Kf6 32. h3 h5 1/2-1/2